Workbook

Sheet Por Item - Elétrico
D4: MINISTÉRIO DO DESENVOLVIMENTO REGIONAL - MDR
D5: COMPANIHA DE DESENVOLVIMENTO DOS VALES DO SÃO FRANCISCO E DO PARNAÍBA - CODEVASF
D6: ÁREA DE GESTÃO ADMINISTRATIVA E DE SUPORTE LOGÍSTICO
D7: Gerência de Patrimônio, Materiais e Serviços Auxiliares
B9: ANEXO II - POR ITENS
B10: Material de Manutenção Elétrica
B11: Unidade: CODEVASF | H11: Por Itens Elétricos e Hidráulicos
B12: Item | C12: Código CATMAT | D12: Natureza Despesa | E12: Descrição Sucinta | F12: Unid. | G12: Consumo Anual Estimado | H12: Consumo Anual Geral | I12: Preço unitário máximo | J12: Preço unitário máximo 2015 | K12: Preço Unitário REGISTRADO 2016 | L12: Valor Global | N12: SEDE Consumo Anual Estimado | O12: 1ª SR Consumo Anual Estimado | P12: 2ª SR Consumo Anual Estimado | Q12: 3ª SR Consumo Anual Estimado | R12: 4ª SR Consumo Anual Estimado | S12: 5ª SR Consumo Anual Estimado | T12: 6ª SR Consumo Anual Estimado | U12: 7ª SR Consumo Anual Estimado | V12: 8ª SR Consumo Anual Estimado
B13: 1 | C13: BR0041629 | D13: 30.90.30-26 | E13: Estabilizador de voltagem de 1000VA Capacidade de potencia nominal 1 KVA, tensão alimentação entrada 110/220 volts, tensão de alimentação de saída 115 v, com no mínimo 4 tomadas. Garantia de 1 ano. | F13: UN | G13: 180 | H13: =SUM(G13:G13) -> 180 | I13: 396.49 | L13: =H13*I13 -> 71368.2 | N13: =G13*I13 -> 71368.2
B14: =B13+1 -> 2 | C14: BR0231995 | D14: 30.90.30-26 | E14: Estabilizador de voltagem de 2000VA Capacidade de potencia nominal 2 KVA, tensão alimentação entrada 110/220 volts, tensão de alimentação de saída 115 v, com no mínimo 4 tomadas. Garantia de 1 ano. | F14: UN | G14: 180 | H14: =SUM(G14:G14) -> 180 | I14: =(136.9+173.9+143.9)/3 -> 151.5666667 | L14: =H14*I14 -> 27282 | N14: =G14*I14 -> 27282
B15: =B14+1 -> 3 | C15: BR0331262 | D15: 30.90.30-26 | E15: NOBREAK Potência nominal 1400VA / 980 Watts (Fator de potência = 0,7). Tensão de entrada: 115V / 220V – Bivolt. Tensão de saída: 115V. Possui 2 baterias internas de 12V x 7Ah. Possui mínimo 5 tomadas de saída. Interativo com regulação ON LINE. Estabilizador com 4 estágios de regulação. Micro processado com tecnologia RISC de alta velocidade com memória Flash. Função TRUE RMS. Auto teste: ao ser ligado, o equipamento autoexecuta uma rotina de testes em seus circuitos internos. Gerenciador de Baterias para informar quando a bateria precisa ser substituída. Recarregador Strong Charger para permite a recarga das baterias mesmo com níveis muito baixos de carga. E conector do tipo engate rápido para expansão de autonomia. Inversor sincronizado com a rede (PLL). Forma de onda senoidal por aproximação: retangular PWM controle de largura e amplitude. Possui DC Start para permitir ser ligado na ausência de rede elétrica. Leds no painel frontal indicam as condições (status) do nobreak, como: modo rede, modo inversor/bateria, final de autonomia, subtensão, sobretensão, baterias em carga. Possui Alarme audiovisual intermitente para queda de rede e fim do tempo de autonomia. Possui Porta fusível externo com unidade reserva. | F15: unid. | G15: 50 | H15: =SUM(G15:G15) -> 50 | I15: 368.97 | L15: =I15*H15 -> 18448.5 | N15: =G15*I15 -> 18448.5
B16: =B15+1 -> 4 | C16: BR0429945 | D16: 30.90.30-26 | E16: Válvula de mictório sensor embutir, inox polido, elétrico 110/220V – 12Vcc, regulador de vazão 6 litros/min. marca/fabricante de referência Draco Eletrônica Indústria e Comércio Eireli - EPP. | F16: Unid. | G16: 30 | H16: =SUM(G16:G16) -> 30 | I16: =(503.4+471.8+589)/3 -> 521.4 | L16: =H16*I16 -> 15642 | N16: =G16*I16 -> 15642
B18: Total Geral | L18: =SUM(L13:L17) -> 132740.7 | N18: =SUM(N13:N16) -> 132740.7 | O18: 0 | P18: 0 | Q18: 0 | R18: 0 | S18: 0 | T18: 0 | U18: 0 | V18: 0
N21: =SUM(N18:V18) -> 132740.7
E1048469: srpeletrico2019

Sheet GRUPO 01 - Elétrico
D4: MINISTÉRIO DO DESENVOLVIMENTO REGIONAL - MDR
D5: COMPANIHA DE DESENVOLVIMENTO DOS VALES DO SÃO FRANCISCO E DO PARNAÍBA - CODEVASF
D6: ÁREA DE GESTÃO ADMINISTRATIVA E DE SUPORTE LOGÍSTICO
D7: Gerência de Patrimônio, Materiais e Serviços Auxiliares
I8: __
B9: ANEXO II - GRUPO: 01
B10: Material de Manutenção Elétrica
B11: Unidade: CODEVASF | I11: GRUPO 01 - Elétrico
B12: Item | C12: Código CATMAT | D12: Natureza Despesa | E12: Descrição Sucinta | F12: Unid. | G12: Consumo Anual Estimado | H12: Consumo Anual Geral | I12: Preço unitário máximo | J12: Preço unitário máximo 2015 | K12: Preço Unitário REGISTRADO 2016 | L12: Valor Global | N12: SEDE Consumo Anual Estimado | O12: 1ª SR Consumo Anual Estimado | P12: 2ª SR Consumo Anual Estimado | Q12: 3ª SR Consumo Anual Estimado | R12: 4ª SR Consumo Anual Estimado | S12: 5ª SR Consumo Anual Estimado | T12: 6ª SR Consumo Anual Estimado | U12: 7ª SR Consumo Anual Estimado | V12: 8ª SR Consumo Anual Estimado
B13: ='Por Item - Elétrico'!$B$16+1 -> 5 | C13: BR0411269 | D13: 30.90.30-26 | E13: Acoplador 20mm x 10mm para uso em Sistema X. Marca:equivalente ou superior à Pial Legrand. | F13: Unid. | G13: 200 | H13: =SUM(G13:G13) -> 200 | I13: =(8.3+10.5+9.97)/3 -> 9.59 | L13: =H13*I13 -> 1918 | N13: =G13*I13 -> 1918
B14: =B13+1 -> 6 | C14: BR0376467 | D14: 30.90.30-26 | E14: Adaptador, tensão nominal 127/220, de um lado tomada 2P+T E universal, do outro plugue, padrão brasileiro, branca, NBR 14136/2002, 690660. (Do padrão novo para o antigo) Marca: equivalente ou superior à PIAL. | F14: Unid. | G14: 240 | H14: 240 | I14: 4.57 | L14: =H14*I14 -> 1096.8 | N14: =I14*G14 -> 1096.8
B15: 7 | C15: BR0395739 | D15: 30.90.30-26 | E15: Adaptador, tensão nominal 127/220, tipo tomada 2P+T, corrente nominal 20, do padrão antigo para o novo, material termoplástico, normas técnicas NBR 14136, referência cód 64119, potência nominal 1905/3300 Marca: equivalente ou superior à PIAL. | F15: Unid. | G15: 240 | H15: 240 | I15: =(12+6.67+12)/3 -> 10.22333333 | L15: 2453.6 | N15: 2453.6
B16: 8 | C16: BR0243116 | D16: 30.90.30-26 | E16: Caixa passagem, material PVC rígido, tipo embutir, comprimento 4 polegadas, largura 4 polegada, cor amarela. Marca: equivalente ou superior à Tigre.. | F16: Unid. | G16: 144 | H16: 144 | I16: 2.25 | L16: 324 | N16: 324
B17: 9 | C17: BR0288845 | D17: 30.90.30-26 | E17: Canaleta 110mm x 20 mm para uso em Sistema X. Com 2 Metros de comprimento Marca:equivalente ou superior à Pial Legrand. (BR0368896) | F17: Unid. | G17: 500 | H17: 500 | I17: 4.95 | L17: 2475 | N17: 2475
B18: 10 | C18: BR0333941 | D18: 30.90.30-26 | E18: Canaleta 20mm x 10 mm para uso em Sistema X. Com 2 Metros de comprimento Marca:equivalente ou superior à Pial Legrand.(BR0333941) (BR0379037) | F18: Unid. | G18: 250 | H18: 250 | I18: =(36.32+17.57+18.9)/3 -> 24.26333333 | L18: 6065.833333 | N18: 6065.833333
B19: 11 | C19: BR0430915 | D19: 30.90.30-26 | E19: Canaleta 32mm x 12,5 mm para uso em Sistema X. Com 2 Metros de comprimento Marca:equivalente ou superior à Pial Legrand. (BR0430915) | F19: Unid. | G19: 100 | H19: 100 | I19: 24.96 | L19: 2496 | N19: 2496
B20: 12 | C20: BR0389689 | D20: 30.90.30-26 | E20: Canaleta 50mm x 20 mm para uso em Sistema X. Com 2 Metros de comprimento Marca:equivalente ou superior à Pial Legrand. | F20: Unid. | G20: 100 | H20: 100 | I20: =(31.2+18.9+17.57)/3 -> 22.55666667 | L20: 2255.666667 | N20: 2255.666667
B21: 13 | C21: BR0428548 | D21: 30.90.30-26 | E21: Cotovelo de 90º, 20mm x 10mm para uso em Sistema X. Marca: equivalente ou superior à Pial Legrand. | F21: Unid. | G21: 250 | H21: 250 | I21: 1.79 | L21: 447.5 | N21: 447.5
B22: 14 | C22: BR0380225 | D22: 30.90.30-26 | E22: Cotovelo interno de 90º, 20mm x 10mm para uso em Sistema X. Marca:equivalente ou superior à Pial Legrand. | F22: Unid. | G22: 250 | H22: 250 | I22: 2.25 | L22: 562.5 | N22: 562.5
B23: 15 | C23: BR0231487 | D23: 30.90.30-26 | E23: Derivação em T 20mm x 10mm para uso em Sistema X. Marca:equivalente ou superior à Pial Legrand. | F23: Unid. | G23: 200 | H23: 200 | I23: 4.49 | L23: 898 | N23: 898
B24: 16 | C24: BR0344875 | D24: 30.90.30-26 | E24: Luva 20mm x 10mm para uso em Sistema X. Marca:equivalente ou superior à Pial Legrand. | F24: Unid. | G24: 200 | H24: 200 | I24: 0.98 | L24: 196 | N24: 196
B25: 17 | C25: BR0244029 | D25: 30.90.30-26 | E25: Tampa de extremidade sistema X, medindo 20mm X 10mm e fabricado em termoplástico na cor branco | F25: Unid. | G25: 100 | H25: 100 | I25: 2.65 | L25: 265 | N25: 265
B26: 18 | C26: BR0313047 | D26: 30.90.30-26 | E26: Fita isolante elétrica, material básico PVC anti-chama, cor preta, comprimento 20 m, largura 19 mm | F26: UN | G26: 250 | H26: 250 | I26: 8.02 | L26: 2005 | N26: 2005
B27: 19 | C27: BR0355316 | D27: 33.90.30-26 | E27: Interruptor de embutir, duas sessões, conjugado com tomada | F27: unid. | G27: 20 | H27: 20 | I27: =(17.55+19.76+12)/3 -> 16.43666667 | L27: 328.7333333 | N27: 328.7333333
B28: 20 | C28: BR0337065 | D28: 33.90.30-26 | E28: Interruptor de embutir, três sessões | F28: unid. | G28: 20 | H28: 20 | I28: =(19.8+22.05+21.66)/3 -> 21.17 | L28: 423.4 | N28: 423.4
B29: 21 | C29: BR0418691 | D29: 33.90.30-26 | E29: Interruptor de embutir, uma sessão | F29: unid. | G29: 20 | H29: 20 | I29: =(6.2+3.99+5.99)/3 -> 5.393333333 | L29: 107.8666667 | N29: 107.8666667
B30: 22 | C30: BR0240093 | D30: 33.90.30-26 | E30: Interruptor de embutir, uma sessão, conjugado com tomada | F30: unid. | G30: 10 | H30: 10 | I30: 4.52 | L30: 45.2 | N30: 45.2
B31: 23 | C31: BR0212380 | D31: 30.90.30-26 | E31: Interruptor de sobrepor 01 seções completo, corrente nominal 10 A, composto de tampa, miolo, caixa padrão de sobrepor com 4 saidas de 20mm + 2 saidas de 40mm, parafuso, linha classe A - TIPO SISTEMA X. Marca: equivalente ou superior à Pial Legrand. | F31: Unid. | G31: 180 | H31: 180 | I31: =(7.88+9.26+7.98)/3 -> 8.373333333 | L31: 1507.2 | N31: 1507.2
B32: 24 | C32: BR0212387 | D32: 30.90.30-26 | E32: Interruptor de sobrepor 02 seções completo, corrente nominal 10 A, composto de tampa, miolo, caixa padrao de sobrepor com 4 saidas de 20mm + 2 saidas de 40mm, parafuso, linha classe A - TIPO SISTEMA X. Marca: equivalente ou superior à Pial Legrand. | F32: Unid. | G32: 180 | H32: 180 | I32: =(8.55+8.46+7.13)/3 -> 8.046666667 | L32: 1448.4 | N32: 1448.4
B33: 25 | C33: BR0331656 | D33: 30.90.30-26 | E33: Interruptor de sobrepor 03 seções completo, corrente nominal 10 A, composto de tampa, miolo, caixa padrão de sobrepor com 4 saidas de 20mm + 2 saidas de 40mm, parafuso, linha classe A - TIPO SISTEMA X. Marca: equivalente ou superior à Pial Legrand. | F33: Unid. | G33: 120 | H33: 120 | I33: 14.9 | L33: 1788 | N33: 1788
B35: Total Geral | L35: =SUM(L13:L34) -> 29107.7 | N35: =SUM(N13:N34) -> 29107.7 | O35: 0 | P35: 0 | Q35: 0 | R35: 0 | S35: 0 | T35: 0 | U35: 0 | V35: 0
N39: =SUM(N35:V35) -> 29107.7
E1048518: srpeletrico2019
AB1048553: Grupos Materias Elétricos
AB1048554: Grupo | AC1048554: SEDE | AD1048554: 1ª SR | AE1048554: 2ª SR | AF1048554: 3ª SR | AG1048554: 4ª SR | AH1048554: 5ª SR | AI1048554: 6ª SR | AJ1048554: 7ª SR | AK1048554: 8ª SR
AB1048555: 1 | AC1048555: =N35 -> 29107.7 | AD1048555: 0 | AE1048555: 0 | AF1048555: 0 | AG1048555: 0 | AH1048555: 0 | AI1048555: 0 | AJ1048555: 0 | AK1048555: 0 | AM1048555: =SUM(AC1048555:AK1048555) -> 29107.7
AB1048556: 2 | AC1048556: ='GRUPO 02 - Elétrico'!N24 -> 51081.36667 | AD1048556: ='GRUPO 02 - Elétrico'!O24 -> 0 | AE1048556: ='GRUPO 02 - Elétrico'!P24 -> 0 | AF1048556: ='GRUPO 02 - Elétrico'!Q24 -> 0 | AG1048556: ='GRUPO 02 - Elétrico'!R24 -> 0 | AH1048556: ='GRUPO 02 - Elétrico'!S24 -> 0 | AI1048556: ='GRUPO 02 - Elétrico'!T24 -> 0 | AJ1048556: ='GRUPO 02 - Elétrico'!U24 -> 0 | AK1048556: ='GRUPO 02 - Elétrico'!V24 -> 0 | AM1048556: =SUM(AC1048556:AK1048556) -> 51081.36667
AB1048557: 3 | AC1048557: ='GRUPO 03 - Elétrico'!N21 -> 30757.66667 | AD1048557: ='GRUPO 03 - Elétrico'!O21 -> 0 | AE1048557: ='GRUPO 03 - Elétrico'!P21 -> 0 | AF1048557: ='GRUPO 03 - Elétrico'!Q21 -> 0 | AG1048557: ='GRUPO 03 - Elétrico'!R21 -> 0 | AH1048557: ='GRUPO 03 - Elétrico'!S21 -> 0 | AI1048557: ='GRUPO 03 - Elétrico'!T21 -> 0 | AJ1048557: ='GRUPO 03 - Elétrico'!U21 -> 0 | AK1048557: ='GRUPO 03 - Elétrico'!V21 -> 0 | AM1048557: 30757.66667
AB1048558: 4 | AC1048558: ='GRUPO 04 - Elétrico'!N20 -> 22646.43333 | AD1048558: ='GRUPO 04 - Elétrico'!O20 ->  | AE1048558: ='GRUPO 04 - Elétrico'!P20 ->  | AF1048558: ='GRUPO 04 - Elétrico'!Q20 ->  | AG1048558: ='GRUPO 04 - Elétrico'!R20 ->  | AH1048558: ='GRUPO 04 - Elétrico'!S20 ->  | AI1048558: ='GRUPO 04 - Elétrico'!T20 ->  | AJ1048558: ='GRUPO 04 - Elétrico'!U20 ->  | AK1048558: ='GRUPO 04 - Elétrico'!V20 -> 
AB1048559: 5 | AC1048559: ='GRUPO 05 - Elétrico'!N16 -> 53205.6 | AD1048559: ='GRUPO 05 - Elétrico'!O16 -> 0 | AE1048559: ='GRUPO 05 - Elétrico'!P16 -> 0 | AF1048559: ='GRUPO 05 - Elétrico'!Q16 -> 0 | AG1048559: ='GRUPO 05 - Elétrico'!R16 -> 0 | AH1048559: ='GRUPO 05 - Elétrico'!S16 -> 0 | AI1048559: ='GRUPO 05 - Elétrico'!T16 -> 0 | AJ1048559: ='GRUPO 05 - Elétrico'!U16 -> 0 | AK1048559: ='GRUPO 05 - Elétrico'!V16 -> 0 | AM1048559: 53205.6
AB1048560: 6 | AC1048560: ='GRUPO 06 - Elétrico'!N21 -> 30199.5 | AD1048560: ='GRUPO 06 - Elétrico'!O21 -> 0 | AE1048560: ='GRUPO 06 - Elétrico'!P21 -> 0 | AF1048560: ='GRUPO 06 - Elétrico'!Q21 -> 0 | AG1048560: ='GRUPO 06 - Elétrico'!R21 -> 0 | AH1048560: ='GRUPO 06 - Elétrico'!S21 -> 0 | AI1048560: ='GRUPO 06 - Elétrico'!T21 -> 0 | AJ1048560: ='GRUPO 06 - Elétrico'!U21 -> 0 | AK1048560: ='GRUPO 06 - Elétrico'!V21 -> 0 | AM1048560: 30199.5
AB1048561: 7 | AC1048561: ='GRUPO 07 - Elétrico'!N22 -> 45611.64 | AD1048561: ='GRUPO 07 - Elétrico'!O22 -> 0 | AE1048561: ='GRUPO 07 - Elétrico'!P22 -> 0 | AF1048561: ='GRUPO 07 - Elétrico'!Q22 -> 0 | AG1048561: ='GRUPO 07 - Elétrico'!R22 -> 0 | AH1048561: ='GRUPO 07 - Elétrico'!S22 -> 0 | AI1048561: ='GRUPO 07 - Elétrico'!T22 -> 0 | AJ1048561: ='GRUPO 07 - Elétrico'!U22 -> 0 | AK1048561: ='GRUPO 07 - Elétrico'!V22 -> 0 | AM1048561: 45611.64
AB1048563: Total | AC1048563: =SUM(AC1048555:AC1048562) -> 262609.9067 | AD1048563: =SUM(AD1048555:AD1048562) -> 
AM1048565: =SUM(AM1048555:AM1048564) -> 
AC1048566: =SUM(AC1048563:AK1048563) -> 

Sheet GRUPO 02 - Elétrico
D4: MINISTÉRIO DO DESENVOLVIMENTO REGIONAL - MDR
D5: COMPANIHA DE DESENVOLVIMENTO DOS VALES DO SÃO FRANCISCO E DO PARNAÍBA - CODEVASF
D6: ÁREA DE GESTÃO ADMINISTRATIVA E DE SUPORTE LOGÍSTICO
D7: Gerência de Patrimônio, Materiais e Serviços Auxiliares
B9: ANEXO II - GRUPO: 02
B10: Material de Manutenção Elétrica
B11: Unidade: CODEVASF | I11: GRUPO 02 - Elétrico
B12: Item | C12: Código CATMAT | D12: Natureza Despesa | E12: Descrição Sucinta | F12: Unid. | G12: Consumo Anual Estimado | H12: Consumo Anual Geral | I12: Preço unitário máximo | J12: Preço unitário máximo 2015 | K12: Preço Unitário REGISTRADO 2016 | L12: Valor Global | N12: SEDE Consumo Anual Estimado | O12: 1ª SR Consumo Anual Estimado | P12: 2ª SR Consumo Anual Estimado | Q12: 3ª SR Consumo Anual Estimado | R12: 4ª SR Consumo Anual Estimado | S12: 5ª SR Consumo Anual Estimado | T12: 6ª SR Consumo Anual Estimado | U12: 7ª SR Consumo Anual Estimado | V12: 8ª SR Consumo Anual Estimado
B13: ='GRUPO 01 - Elétrico'!B33+1 -> 26 | C13: BR0352736 | D13: 30.90.30-26 | E13: Cabo elétrico flexível, 750 v, pp, mole, 3 x 4 mm2, cobre, pvc anti-chama, pvc, de conformidade INMETRO, norma aplicável NBR 13249 Bobina com 500 metros Marca: equivalente ou superior à Pirelli. | F13: Metros | G13: 2000 | H13: =SUM(G13:G13) -> 2000 | I13: 11.23 | L13: =H13*I13 -> 22460 | N13: =I13*G13 -> 22460
B14: =B13+1 -> 27 | C14: BR0394031 | D14: 30.90.30-26 | E14: Cabo elétrico flexível, PP 2 X 1.50 mm, 750V, material do condutor cobre, anti-chama, com isolamento em pvc - CLORETO DE POLIVINILA Com certificação INMETRO / NBR 13249 Marca: equivalente ou superior à Megatron. | F14: Rolo 100 metros | G14: 8 | H14: 8 | I14: =(56.9+72.9+59)/3 -> 62.93333333 | L14: 503.4666667 | N14: 503.4666667
B15: 28 | C15: BR0342939 | D15: 30.90.30-26 | E15: Cabo elétrico flexível, PP 2 X 2.50 mm, 750V, material do condutor cobre, com isolamento em pvc Com certificação INMETRO / NBR 13249 Marca: equivalente ou superior à Megatron. | F15: Rolo 100 metros | G15: 10 | H15: 10 | I15: =(72.07+86.83+65.97)/3 -> 74.95666667 | L15: 749.5666667 | N15: 749.5666667
B16: 29 | C16: BR0409524 | D16: 30.90.30-26 | E16: Cabo elétrico flexível, PP 3 X 1.50 mm, 750V, material do condutor cobre,anti-chama, com isolamento em pvc - Com certificação INMETRO / NBR 13249 Marca: equivalente ou superior à Megatron. | F16: Rolo 100 metros | G16: 8 | H16: 8 | I16: =1.9*100 -> 190 | L16: 1520 | N16: 1520
B17: 30 | C17: BR0332928 | D17: 30.90.30-26 | E17: Cabo elétrico flexível, PP 3 X 2.50 mm, 750V, material do condutor cobre, anti-chama, com isolamento em pvc Com certificação INMETRO / NBR 13249 Marca: equivalente ou superior à Pirelli. | F17: Metros | G17: 1000 | H17: 1000 | I17: =267.5/100 -> 2.675 | L17: 2675 | N17: 2675
B18: 31 | C18: BR0389765 | D18: 30.90.30-17 | E18: Cabo rede computador, material revestimento: pvc - cloreto de polivinila, material condutor: cobre, bitola condutor: 24 awg, tipo condutor: trançado, tipo cabo: utp 4 pares padrão tia 568a, cor: azul, amarela ou cinza, categoria: 6 | F18: Caixa com 305 metros | G18: 10 | H18: 10 | I18: =(363.36+459+251.2)/3 -> 357.8533333 | L18: 3578.533333 | N18: 3578.533333
B19: 32 | C19: BR0239472 | D19: 30.90.30-26 | E19: Fio elétrico flexível, paralelo, bitola 2 x 1,5 mm, material condutor cobre, material isolamento PVC Marca: equivalente ou superior à Pirelli. | F19: Rolo 100 metros | G19: 12 | H19: 12 | I19: =0.95*100 -> 95 | L19: 1140 | N19: 1140
B20: 33 | C20: BR0238853 | D20: 30.90.30-26 | E20: Fio elétrico flexível, paralelo, bitola 2 x 2,5 mm, material condutor cobre, material isolamento PVC Marca: equivalente ou superior à Pirelli. | F20: Rolo 100 metros | G20: 12 | H20: 12 | I20: 409.9 | L20: 4918.8 | N20: 4918.8
B21: 34 | C21: BR0224596 | D21: 30.90.30-26 | E21: Fio flexível, 2,5mm, para tensões de até 450/750 V., conforme NBR NM 247-3 (cores: Vermelho, preto, branco, azul, amarelo e verde) Marca: equivalente ou superior à Pirelli. | F21: Rolo 100 metros | G21: 180 | H21: 180 | I21: 56 | L21: 10080 | N21: 10080
B22: 35 | C22: BR0224597 | D22: 30.90.30-26 | E22: Fio flexível, 4,0 mm, para tensões de até 450/750 V. Com certificação INMETRO / NBR 13249 (cores: Vermelho, preto, branco, azul e verde) Marca: equivalente ou superior à Pirelli. | F22: Rolo 100 metros | G22: 24 | H22: 24 | I22: 144 | L22: 3456 | N22: 3456
B24: Total Geral | L24: =SUM(L13:L23) -> 51081.36667 | N24: =SUM(N13:N23) -> 51081.36667 | O24: 0 | P24: 0 | Q24: 0 | R24: 0 | S24: 0 | T24: 0 | U24: 0 | V24: 0
N28: =SUM(N24:V24) -> 51081.36667
E1048507: srpeletrico2019

Sheet GRUPO 03 - Elétrico
D4: MINISTÉRIO DO DESENVOLVIMENTO REGIONAL - MDR
D5: COMPANIHA DE DESENVOLVIMENTO DOS VALES DO SÃO FRANCISCO E DO PARNAÍBA - CODEVASF
D6: ÁREA DE GESTÃO ADMINISTRATIVA E DE SUPORTE LOGÍSTICO
D7: Gerência de Patrimônio, Materiais e Serviços Auxiliares
B9: ANEXO II - GRUPO: 03
B10: Material de Manutenção Elétrica
B11: Unidade: CODEVASF | I11: GRUPO 03 - Elétrico
B12: Item | C12: Código CATMAT | D12: Natureza Despesa | E12: Descrição Sucinta | F12: Unid. | G12: Consumo Anual Estimado | H12: Consumo Anual Geral | I12: Preço unitário máximo | J12: Preço unitário máximo 2015 | K12: Preço Unitário REGISTRADO 2016 | L12: Valor Global | N12: SEDE Consumo Anual Estimado | O12: 1ª SR Consumo Anual Estimado | P12: 2ª SR Consumo Anual Estimado | Q12: 3ª SR Consumo Anual Estimado | R12: 4ª SR Consumo Anual Estimado | S12: 5ª SR Consumo Anual Estimado | T12: 6ª SR Consumo Anual Estimado | U12: 7ª SR Consumo Anual Estimado | V12: 8ª SR Consumo Anual Estimado
B13: ='GRUPO 02 - Elétrico'!$B$22+1 -> 36 | C13: BR0261260 | D13: 30.90.30-26 | E13: Lâmpada fluorescente compacta, potência 15 W, comprimento 140 mm, diâmetro aproximadamente de 52 cm, tensão 220/240 V, características adicionais | F13: Unid. | G13: 180 | H13: =SUM(G13:G13) -> 180 | I13: =(8.9+8.9+9.84)/3 -> 9.213333333 | L13: =H13*I13 -> 1658.4 | N13: =I13*G13 -> 1658.4
B14: =B13+1 -> 37 | C14: BR0245112 | D14: 30.90.30-26 | E14: Lâmpada fluorescente compacta, tipo base Edson-27, potência 30, tensão 220 | F14: Unid. | G14: 60 | H14: 60 | I14: 15.54 | L14: 932.4 | N14: 932.4
B15: 38 | C15: BR0349219 | D15: 30.90.30-26 | E15: Lâmpada fluorescente compacta, tipo base eletrônica, potência 45 W, tensão 220V | F15: UN | G15: 120 | H15: 120 | I15: 27.7 | L15: 3324 | N15: 3324
B16: 39 | C16: BR0234117 | D16: 30.90.30-26 | E16: Lâmpada Fluorescente HO 110, tubular, base bipino, potência 110 W, comprimento 2.400 mm, tensão alimentação 220V | F16: Unid. | G16: 500 | H16: 500 | I16: =(24.12+27.5+44)/3 -> 31.87333333 | J16: pesquisar SIASG ou internet | L16: 15936.66667 | N16: 15936.66667
B17: 40 | C17: BR0256287 | D17: 30.90.30-26 | E17: Lâmpada fluorescente tubular, base bipino, potência 20 W, tensão alimentação 220 V | F17: Unid. | G17: 500 | H17: 500 | I17: =(9.5+12.36+6.82)/3 -> 9.56 | L17: 4780 | N17: 4780
B18: 41 | C18: BR0232988 | D18: 30.90.30-26 | E18: Lâmpada fluorescente, tubular, base bipino, potência 40 W, tensão alimentação 220 V | F18: Unid. | G18: 500 | H18: 500 | I18: 7.04 | L18: 3520 | N18: 3520
B19: 42 | C19: BR0150260 | D19: 30.90.30-26 | E19: Luminária tipo arandela (vulgarmente denominada tartaruga), a prova de tempo, confeccionada em aço e Vidro. | F19: Unid. | G19: 10 | H19: 10 | I19: 60.62 | L19: 606.2 | N19: 606.2
B21: Total Geral | L21: =SUM(L13:L20) -> 30757.66667 | N21: =SUM(N13:N20) -> 30757.66667 | O21: 0 | P21: 0 | Q21: 0 | R21: 0 | S21: 0 | T21: 0 | U21: 0 | V21: 0
N25: =SUM(N21:V21) -> 30757.66667
E1048504: srpeletrico2019

Sheet GRUPO 04 - Elétrico
D4: MINISTÉRIO DO DESENVOLVIMENTO REGIONAL - MDR
D5: COMPANIHA DE DESENVOLVIMENTO DOS VALES DO SÃO FRANCISCO E DO PARNAÍBA - CODEVASF
D6: ÁREA DE GESTÃO ADMINISTRATIVA E DE SUPORTE LOGÍSTICO
D7: Gerência de Patrimônio, Materiais e Serviços Auxiliares
B9: ANEXO II - GRUPO: 04
B10: Material de Manutenção Elétrica
B11: Unidade: CODEVASF | I11: GRUPO 04 - Elétrico
B12: Item | C12: Código CATMAT | D12: Natureza Despesa | E12: Descrição Sucinta | F12: Unid. | G12: Consumo Anual Estimado | H12: Consumo Anual Geral | I12: Preço unitário máximo | J12: Preço unitário máximo 2015 | K12: Preço Unitário REGISTRADO 2016 | L12: Valor Global | N12: SEDE Consumo Anual Estimado | O12: 1ª SR Consumo Anual Estimado | P12: 2ª SR Consumo Anual Estimado | Q12: 3ª SR Consumo Anual Estimado | R12: 4ª SR Consumo Anual Estimado | S12: 5ª SR Consumo Anual Estimado | T12: 6ª SR Consumo Anual Estimado | U12: 7ª SR Consumo Anual Estimado | V12: 8ª SR Consumo Anual Estimado
B13: ='GRUPO 03 - Elétrico'!$B$19+1 -> 43 | C13: BR0441137 | D13: 30.90.30-26 | E13: Lâmpada Led Bulbo 30W, tensão de entrada: bivolt ( 110/220 v ), consumo de energia: 30 w, temperatura de cor: 6000- 6500 k(frio), ângulo de feixe: 30 ° / 60 °, índice de reprodução de cor (irc):> 80, material: plástico, temperatura ambiente: -20 ~ 40 ° c, vida útil: até 50 vezes maior comparado a outras, não emite radiação infravermelha nem ultravioleta | F13: Unid. | G13: 200 | H13: =SUM(G13:G13) -> 200 | I13: 44.73 | L13: =H13*I13 -> 8946 | N13: =I13*G13 -> 8946 | O13: =#REF!*I13 ->  | P13: =#REF!*I13 ->  | Q13: =#REF!*I13 ->  | R13: =#REF!*I13 ->  | S13: =#REF!*I13 ->  | T13: =#REF!*I13 ->  | U13: =#REF!*I13 ->  | V13: =#REF!*I13 -> 
B14: =B13+1 -> 44 | C14: BR0435130 | D14: 30.90.30-26 | E14: Lâmpada LED Bulbo 60W, tensão: Bivolt, consumo: 60w, Potência Nominal 12 tipo BASE E-27, TIPO BULBO A60 GLOBAL LEITOSO, FREQUÊNCIA NOMINAL 60. | F14: Unid. | G14: 50 | H14: 50 | I14: 7.34 | L14: 367 | N14: 367 | O14: =#REF!*I14 ->  | P14: =#REF!*I14 ->  | Q14: =#REF!*I14 ->  | R14: =#REF!*I14 ->  | S14: =#REF!*I14 ->  | T14: =#REF!*I14 ->  | U14: =#REF!*I14 ->  | V14: =#REF!*I14 -> 
B15: =B14+1 -> 45 | C15: BR0446038 | D15: 30.90.30-26 | E15: Lâmpada Led Bulbo 7W, tensão de entrada: bivolt (110/220 v), consumo de energia: 7 w, temperatura de cor: 6000- 6500 k(frio), ângulo de feixe: 30 ° / 60 °, índice de reprodução de cor (irc):> 80, material: plástico, temperatura ambiente: -20 ~ 40 ° c, vida útil: até 50 vezes maior comparado a outras, não emite radiação infravermelha nem ultravioleta | F15: Unid. | G15: 200 | H15: 200 | I15: 6.42 | L15: 1284 | N15: 1284 | O15: =#REF!*I15 ->  | P15: =#REF!*I15 ->  | Q15: =#REF!*I15 ->  | R15: =#REF!*I15 ->  | S15: =#REF!*I15 ->  | T15: =#REF!*I15 ->  | U15: =#REF!*I15 ->  | V15: =#REF!*I15 -> 
B16: =B15+1 -> 46 | C16: BR0437224 | D16: 30.90.30-26 | E16: Lâmpada Led Tubular 18W, T8 120cm – LEITOSA, Cor: 6.500k (Branco Frio), Tensão: Bivolt , Consumo: 18w,Ângulo de iluminação: 120º, Luminosidade: 900 ~ 1300 Lumens, Durabilidade: 50,000 à 80,000 hs, Dimensão: 1200 X 28 mm, Não emite UV (Ultravioleta) e IR (Infra Vermelho) | F16: Unid. | G16: 840 | H16: 840 | I16: 13 | L16: 10920 | N16: 10920 | O16: =#REF!*I16 ->  | P16: =#REF!*I16 ->  | Q16: =#REF!*I16 ->  | R16: =#REF!*I16 ->  | S16: =#REF!*I16 ->  | T16: =#REF!*I16 ->  | U16: =#REF!*I16 ->  | V16: =#REF!*I16 -> 
B17: =B16+1 -> 47 | C17: BR0399271 | D17: 30.90.30-26 | E17: Luz emergência, fixa à parede, com 30 lâmpadas de led de 3W, bivolt, recarregável, autonomia mínima de 12 horas, luz branca. Marca:equivalente ou superior àIntelbrás | F17: Unid. | G17: 60 | H17: 60 | I17: 11.61 | L17: 696.6 | N17: 696.6 | O17: =#REF!*I17 ->  | P17: =#REF!*I17 ->  | Q17: =#REF!*I17 ->  | R17: =#REF!*I17 ->  | S17: =#REF!*I17 ->  | T17: =#REF!*I17 ->  | U17: =#REF!*I17 ->  | V17: =#REF!*I17 -> 
B18: =B17+1 -> 48 | C18: BR0426514 | D18: 33.90.30-16 | E18: Lâmpada LED bulbo 10 W, 220 V | F18: unid. | G18: 50 | H18: 50 | I18: =(8+8.97+9)/3 -> 8.656666667 | J18: pesquisar SIASG ou internet | L18: 432.8333333 | N18: 432.8333333 | O18: =#REF!*I18 ->  | P18: =#REF!*I18 ->  | Q18: =#REF!*I18 ->  | R18: =#REF!*I18 ->  | S18: =#REF!*I18 ->  | T18: =#REF!*I18 ->  | U18: =#REF!*I18 ->  | V18: =#REF!*I18 -> 
B20: Total Geral | L20: =SUM(L13:L19) -> 22646.43333 | N20: =SUM(N13:N19) -> 22646.43333
N24: =SUM(N20:V20) -> 
E1048503: srpeletrico2019

Sheet GRUPO 05 - Elétrico
D4: MINISTÉRIO DO DESENVOLVIMENTO REGIONAL - MDR
D5: COMPANIHA DE DESENVOLVIMENTO DOS VALES DO SÃO FRANCISCO E DO PARNAÍBA - CODEVASF
D6: ÁREA DE GESTÃO ADMINISTRATIVA E DE SUPORTE LOGÍSTICO
D7: Gerência de Patrimônio, Materiais e Serviços Auxiliares
B9: ANEXO II - GRUPO: 05
B10: Material de Manutenção Elétrica
B11: Unidade: CODEVASF | I11: GRUPO 05 - Elétrico
B12: Item | C12: Código CATMAT | D12: Natureza Despesa | E12: Descrição Sucinta | F12: Unid. | G12: Consumo Anual Estimado | H12: Consumo Anual Geral | I12: Preço unitário máximo | J12: Preço unitário máximo 2015 | K12: Preço Unitário REGISTRADO 2016 | L12: Valor Global | N12: SEDE Consumo Anual Estimado | O12: 1ª SR Consumo Anual Estimado | P12: 2ª SR Consumo Anual Estimado | Q12: 3ª SR Consumo Anual Estimado | R12: 4ª SR Consumo Anual Estimado | S12: 5ª SR Consumo Anual Estimado | T12: 6ª SR Consumo Anual Estimado | U12: 7ª SR Consumo Anual Estimado | V12: 8ª SR Consumo Anual Estimado
B13: ='GRUPO 04 - Elétrico'!$B$18+1 -> 49 | C13: BR0441015 | D13: 30.90.30-26 | E13: Lâmpada Led Tubular 36W, Modelo: T8 240 cm LEITOSA, Cor: 6.500k (Branco Frio), quantidade de led: 96, Tensão: Bivolt, Consumo: 36w, Ângulo de iluminação: 120º, Luminosidade: 900 ~ 1300 Lumens, Durabilidade: 50,000 à 80,000 hs, Dimensão: 2400 X 28 mm, Não emite UV (Ultravioleta) e IR (Infra Vermelho) | F13: Unid. | G13: 840 | H13: =SUM(G13:G13) -> 840 | I13: 53.94 | L13: =H13*I13 -> 45309.6 | N13: =I13*G13 -> 45309.6
B14: =B13+1 -> 50 | C14: BR0437582 | D14: 30.90.30-26 | E14: Lâmpada Led Tubular 9W, Modelo: T8 60cm – Leitosa, Cor: 6.500k (Branco Frio), Tensão: Bivolt , Consumo: 9w, Ângulo de iluminação: 120º, Luminosidade: 900 ~ 1300 Lumens, Durabilidade: 50,000 à 80,000 hs, Não emite UV (Ultravioleta) e IR (Infra Vermelho) | F14: Unid. | G14: 840 | H14: =SUM(G14:G14) -> 840 | I14: 9.4 | L14: =H14*I14 -> 7896 | N14: =I14*G14 -> 7896
B16: Total Geral | L16: =SUM(L13:L15) -> 53205.6 | N16: =SUM(N13:N15) -> 53205.6 | O16: 0 | P16: 0 | Q16: 0 | R16: 0 | S16: 0 | T16: 0 | U16: 0 | V16: 0
N20: =SUM(N16:V16) -> 53205.6
E1048499: srpeletrico2019

Sheet GRUPO 06 - Elétrico
D4: MINISTÉRIO DO DESENVOLVIMENTO REGIONAL - MDR
D5: COMPANIHA DE DESENVOLVIMENTO DOS VALES DO SÃO FRANCISCO E DO PARNAÍBA - CODEVASF
D6: ÁREA DE GESTÃO ADMINISTRATIVA E DE SUPORTE LOGÍSTICO
D7: Gerência de Patrimônio, Materiais e Serviços Auxiliares
B9: ANEXO II - GRUPO: 06
B10: Material de Manutenção Elétrica
B11: Unidade: CODEVASF | I11: GRUPO 06 - Elétrico
B12: Item | C12: Código CATMAT | D12: Natureza Despesa | E12: Descrição Sucinta | F12: Unid. | G12: Consumo Anual Estimado | H12: Consumo Anual Geral | I12: Preço unitário máximo | J12: Preço unitário máximo 2015 | K12: Preço Unitário REGISTRADO 2016 | L12: Valor Global | N12: SEDE Consumo Anual Estimado | O12: 1ª SR Consumo Anual Estimado | P12: 2ª SR Consumo Anual Estimado | Q12: 3ª SR Consumo Anual Estimado | R12: 4ª SR Consumo Anual Estimado | S12: 5ª SR Consumo Anual Estimado | T12: 6ª SR Consumo Anual Estimado | U12: 7ª SR Consumo Anual Estimado | V12: 8ª SR Consumo Anual Estimado
B13: ='GRUPO 05 - Elétrico'!B14+1 -> 51 | C13: BR0434161 | D13: 30.90.30-26 | E13: Refletor LED 100W, Potência: 100 W, Dimensões: 370 mm x 290 mm x 120 mm, Certificação: CE, Ângulo: 120º , A prova d’água: IP65, Voltagem: AC 85-265V (bivolt), Vida útil: Até 50.000 horas, Cor da luz: Branco 6000k +- 200k | F13: Unid. | G13: 50 | H13: =SUM(G13:G13) -> 50 | I13: 75 | L13: =H13*I13 -> 3750 | N13: =I13*G13 -> 3750
B14: =B13+1 -> 52 | C14: BR0360131 | D14: 30.90.30-26 | E14: Refletor LED 30W, Potência: 30 W, Dimensões: 230 mm x 200 mm x 11 mm, Certificação: CE, Ângulo: 120º, A prova d’água: IP65, Voltagem: AC 85-265V (bivolt), Vida útil: Até 50.000 horas, Cor da luz: Branco 6000k +- 200k | F14: Unid. | G14: 50 | H14: 50 | I14: =(39.97+25.84+55.9)/3 -> 40.57 | L14: =H14*I14 -> 2028.5 | N14: 2028.5
B15: 53 | C15: BR0434160 | D15: 30.90.30-26 | E15: Refletor LED 50W, Potência: 50 W, Dimensões: 370 mm x 290 mm x 120 mm, Certificação: CE, Ângulo: 120º, A prova d’água: IP65, Voltagem: AC 85-265V (bivolt), Vida útil: Até 50.000 horas, Cor da luz: Branco 6000k +- 200k | F15: Unid. | G15: 50 | H15: 50 | I15: 38.9 | L15: 1945 | N15: 1945
B16: 54 | C16: BR0434162 | D16: 30.90.30-26 | E16: Refletor, Alumínio blindado, LED COB (CHIP ON BOARD), 50 W, bivolt, IP65 (Tabela ingress protection), 120°, 6000/4000 K | F16: Unid. | G16: 50 | H16: 50 | I16: 193.33 | L16: 9666.5 | N16: 9666.5
B17: 55 | C17: BR0364621 | D17: 30.90.30-26 | E17: Soquete anti-vibratório para lâmpada fluorescente em geral EXCETO T5, braquilite, com Dimensões: altura: 6 cm, largura: 2,5 cm, profundidade: 2 cm | F17: Unid. | G17: 1000 | H17: 1000 | I17: =(2.41+3.5+4.65)/3 -> 3.52 | L17: 3520 | N17: 3520
B18: 56 | C18: BR0375077 | D18: 30.90.30-26 | E18: Tomada, modelo universal 2P+T, formato corpo redondo, corrente nominal 15 A, tensão nominal 250, características adicionais caixa sobrepor 70mm X 70mm X 27mm, para instalação elétric, com parafusos. Linha classe A - TIPO SISTEMA X. Conforme norma ABNT NBR 14136 | F18: UN | G18: 400 | H18: 400 | I18: 23 | L18: 9200 | N18: 9200
B19: 57 | C19: BR0367204 | D19: 33.90.30-17 | E19: Spray para limpeza de contatos elétricos e eletrônicos (dielétrico) de secagem imediata; densidade: 0,660 – 0,670 com a função de remover os resíduos que prejudicam a condutividade nos contatos elétricos e eletrônicos, poeira e umidade e recuperar a condutividade nos contatos instantaneamente. | F19: unid. | G19: 5 | H19: 5 | I19: 17.9 | L19: 89.5 | N19: 89.5
B21: Total Geral | L21: =SUM(L13:L20) -> 30199.5 | N21: =SUM(N13:N20) -> 30199.5 | O21: 0 | P21: 0 | Q21: 0 | R21: 0 | S21: 0 | T21: 0 | U21: 0 | V21: 0
N25: =SUM(N21:V21) -> 30199.5
E1048504: srpeletrico2019

Sheet GRUPO 07 - Elétrico
D4: MINISTÉRIO DO DESENVOLVIMENTO REGIONAL - MDR
D5: COMPANIHA DE DESENVOLVIMENTO DOS VALES DO SÃO FRANCISCO E DO PARNAÍBA - CODEVASF
D6: ÁREA DE GESTÃO ADMINISTRATIVA E DE SUPORTE LOGÍSTICO
D7: Gerência de Patrimônio, Materiais e Serviços Auxiliares
B9: ANEXO II - GRUPO: 07
B10: Material de Manutenção Elétrica
B11: Unidade: CODEVASF | I11: GRUPO 07 - Elétrico
B12: Item | C12: Código CATMAT | D12: Natureza Despesa | E12: Descrição Sucinta | F12: Unid. | G12: Consumo Anual Estimado | H12: Consumo Anual Geral | I12: Preço unitário máximo | J12: Preço unitário máximo 2015 | K12: Preço Unitário REGISTRADO 2016 | L12: Valor Global | N12: SEDE Consumo Anual Estimado | O12: 1ª SR Consumo Anual Estimado | P12: 2ª SR Consumo Anual Estimado | Q12: 3ª SR Consumo Anual Estimado | R12: 4ª SR Consumo Anual Estimado | S12: 5ª SR Consumo Anual Estimado | T12: 6ª SR Consumo Anual Estimado | U12: 7ª SR Consumo Anual Estimado | V12: 8ª SR Consumo Anual Estimado
B13: ='GRUPO 06 - Elétrico'!$B$19+1 -> 58 | C13: BR0421088 | D13: 30.90.30-26 | E13: Filtro linha, 110/220 v, 6 tomadas padrão nbr14136, seleção automática de voltagem, proteção contra surtos rede energia e telefonia, 60 hz, novo padrão nbr 14136:2002, pintura eletrostática a pó, display contator surto elétrico; fusível térmico. | F13: Unid. | G13: 50 | H13: =SUM(G13:G13) -> 50 | I13: 22.54 | L13: =H13*I13 -> 1127 | N13: =I13*G13 -> 1127
B14: =B13+1 -> 59 | C14: BR0291227 | D14: 30.90.30-26 | E14: Filtro linha, tensão alimentação 110/220 V, potência máxima 1.000 W, quantidade saída 5 tomadas para computador, características adicionais cabo de força de aproximadamente 1,30 M | F14: Unid. | G14: 72 | H14: 72 | I14: 19.52 | L14: =H14*I14 -> 1405.44 | N14: 1405.44
B15: =B14+1 -> 60 | C15: BR0064831 | D15: 30.90.30-26 | E15: Reator eletrônico, para lâmpada fluorescente HO (HIGH OUTPUT), 1 X 110 W, 110/220 V, em conformidade com as normas (NBR nº 14417 e 14418) | F15: Unid. | G15: 180 | H15: 180 | I15: 13.85 | L15: =H15*I15 -> 2493 | N15: 2493
B16: =B15+1 -> 61 | C16: BR0240105 | D16: 30.90.30-26 | E16: Reator eletrônico, para lâmpada fluorescente HO (HIGH OUTPUT), 2 X 110 W, 110/220 V | F16: Unid. | G16: 300 | H16: 300 | I16: =(96.3+91.93+65.41)/3 -> 84.54666667 | L16: 25364 | N16: 25364
B17: 62 | C17: BR0418057 | D17: 30.90.30-26 | E17: Reator lâmpada fluorescente, instantânea, eletrônico, potência nominal 20 W, tensão nominal 127/220 V, ALTO, quantidade 1 lâmpada, selo INMETRO garantia 2 anos, T10 | F17: Unid. | G17: 180 | H17: 180 | I17: 11 | L17: 1980 | N17: 1980
B18: 63 | C18: BR0405815 | D18: 30.90.30-26 | E18: Reator lâmpada fluorescente, instantânea, eletrônico, potência nominal 20 W, tensão nominal 127/220 V, ALTO, quantidade 2 lâmpadas, selo INMETRO garantia 2 anos, T10 | F18: Unid. | G18: 340 | H18: 340 | I18: 16.54 | L18: 5623.6 | N18: 5623.6
B19: 64 | C19: BR0405814 | D19: 30.90.30-26 | E19: Reator lâmpada fluorescente, instantânea, eletrônico, potência nominal 40 W, tensão nominal 127/220 V, ALTO, quantidade 2 lâmpadas, selo INMETRO garantia 2 anos, T10 | F19: Unid. | G19: 340 | H19: 340 | I19: 17.79 | L19: 6048.6 | N19: 6048.6
B20: 65 | C20: BR0234935 | D20: 30.90.30-26 | E20: Receptáculo de rabicho para lâmpada fluorescente | F20: Unid. | G20: 1000 | H20: 1000 | I20: 1.57 | L20: 1570 | N20: 1570
B22: Total Geral | L22: =SUM(L13:L21) -> 45611.64 | N22: =SUM(N13:N21) -> 45611.64 | O22: 0 | P22: 0 | Q22: 0 | R22: 0 | S22: 0 | T22: 0 | U22: 0 | V22: 0
L26: =L22+'GRUPO 06 - Elétrico'!L21+'GRUPO 05 - Elétrico'!L16+'GRUPO 04 - Elétrico'!L20+'GRUPO 03 - Elétrico'!L21+'GRUPO 02 - Elétrico'!L24+'GRUPO 01 - Elétrico'!L35 -> 262609.9067 | N26: =SUM(N22:V22) -> 45611.64
E1048505: srpeletrico2019

Sheet GRUPO 08 - Hidráulica
D4: MINISTÉRIO DO DESENVOLVIMENTO REGIONAL - MDR
D5: COMPANIHA DE DESENVOLVIMENTO DOS VALES DO SÃO FRANCISCO E DO PARNAÍBA - CODEVASF
D6: ÁREA DE GESTÃO ADMINISTRATIVA E DE SUPORTE LOGÍSTICO
D7: Gerência de Patrimônio, Materiais e Serviços Auxiliares
B9: ANEXO II - GRUPO 08 - Hidráulica
B10: Material de Manutenção Hidráulica
B11: Unidade: CODEVASF | I11: GRUPO 08 - Hidráulica
B12: Item | C12: Código CATMAT | D12: Natureza Despesa | E12: Descrição Sucinta | F12: Unid. | G12: Consumo Anual Estimado | H12: Consumo Anual Geral | I12: Preço unitário máximo | J12: Preço unitário máximo 2015 | K12: Preço unitário REGISTRADO 2016 | L12: Valor Global | N12: SEDE Consumo Anual Estimado | O12: 1ª SR Consumo Anual Estimado | P12: 2ª SR Consumo Anual Estimado | Q12: 3ª SR Consumo Anual Estimado | R12: 4ª SR Consumo Anual Estimado | S12: 5ª SR Consumo Anual Estimado | T12: 6ª SR Consumo Anual Estimado | U12: 7ª SR Consumo Anual Estimado | V12: 8ª SR Consumo Anual Estimado
B13: ='GRUPO 07 - Elétrico'!B20+1 -> 66 | C13: BR0232601 | D13: 30.90.30-26 | E13: Cola adesiva para conexão hidráulica, acetona/metiletilcetona / tolual e resina pvc, prazo de validade de 1 ano após fabricação, tubos e conexões de pvc Marca: equivalente ou superior à Tigre. | F13: Frasco 175g | G13: 20 | H13: =SUM(G13:G13) -> 20 | I13: 10.1 | J13: 10 | K13: 5.07 | L13: =H13*I13 -> 202 | N13: =G13*I13 -> 202
B14: =B13+1 -> 67 | C14: BR0243136 | D14: 30.90.30-24 | E14: Conexão em PVC , tipo joelho, de 20mm (1/2") Classe " A " Marca: equivalente ou superior à Tigre. | F14: UN | G14: 50 | H14: 50 | I14: 1.34 | J14: 1.88 | K14: 1.46 | L14: =H14*I14 -> 67 | N14: 67
B15: 68 | C15: BR0243137 | D15: 30.90.30-24 | E15: Conexão em PVC , tipo joelho, de 25mm (3/4") Classe " A " Marca: equivalente ou superior à Tigre. | F15: UN | G15: 50 | H15: 50 | I15: 1.55 | J15: 2.37 | K15: 2.27 | L15: 77.5 | N15: 77.5
B16: 69 | C16: BR0346838 | D16: 30.90.30-24 | E16: Conexão em PVC , tipo T, de 20mm (1/2") Classe " A " Marca: equivalente ou superior à Tigre. | F16: UN | G16: 50 | H16: 50 | I16: 2.52 | J16: 3.83 | K16: 0.41 | L16: 126 | N16: 126
B17: 70 | C17: BR0346837 | D17: 30.90.30-24 | E17: Conexão em PVC , tipo T, de 25mm (3/4") Classe " A " Marca: equivalente ou superior à Tigre. | F17: UN | G17: 50 | H17: 50 | I17: 3.68 | J17: 3.3 | K17: 0.45 | L17: 184 | N17: 184
B18: 71 | C18: BR0295430 | D18: 30.90.30-24 | E18: Conexão em PVC, tipo curva raio longo, de 20mm (1/2") Classe " A " Marca: equivalente ou superior à Tigre. | F18: UN | G18: 50 | H18: 50 | I18: 1.22 | J18: 2.6 | K18: 2.6 | L18: 61 | N18: 61
B19: 72 | C19: BR0290182 | D19: 30.90.30-24 | E19: Conexão em PVC, tipo curva raio longo, de 25mm (3/4") Classe " A " Marca: equivalente ou superior à Tigre. | F19: UN | G19: 50 | H19: 50 | I19: 1.53 | J19: 2.3 | K19: 2.3 | L19: 76.5 | N19: 76.5
B20: 73 | C20: BR0039144 | D20: 30.90.30-24 | E20: Conexão em PVC, tipo luva de correr, de 20mm (1/2") Classe " A " Marca: equivalente ou superior à Tigre. | F20: UN | G20: 50 | H20: 50 | I20: 8.3 | J20: 8.99 | K20: 8.49 | L20: 415 | N20: 415
B21: 74 | C21: BR0227725 | D21: 30.90.30-24 | E21: Conexão em PVC, tipo luva de correr, de 25mm (3/4") Classe " A " Marca: equivalente ou superior à Tigre. | F21: UN | G21: 50 | H21: 50 | I21: 2.81 | J21: 12.9 | K21: 6.99 | L21: 140.5 | N21: 140.5
B22: 75 | C22: BR0301441 | D22: 30.90.30-24 | E22: Engate hidráulico, aço inoxidável, 1/ 2 pol, 40 cm, instalações prediais água fria, com anel de vedação nas e xtremidades, rosca bsp ma | F22: UN | G22: 50 | H22: 50 | I22: 2.35 | J22: 27.33 | K22: 15.44 | L22: 117.5 | N22: 117.5
B23: 76 | C23: BR0022721 | D23: 30.90.30-24 | E23: Fita veda rosca 18mm X 50 M Embalagem Caixa de papelão Marca: equivalente ou superior à Tigre. | F23: UN | G23: 50 | H23: 50 | I23: =(3.54+3.99+6.42)/3 -> 4.65 | J23: 15 | K23: 5.99 | L23: 232.5 | N23: 232.5
B24: 77 | C24: BR0249993 | D24: 30.90.30-24 | E24: Tubo PVC soldável, aplicação rede hidráulica e esgoto, cor branca, diâmetro nominal 100 mm, comprimento 6 mt, tipo leve, material pvc rígido Classe " A " Marca: equivalente ou superior à Tigre. | F24: UN | G24: 10 | H24: 10 | I24: 42.66 | J24: 53.5 | L24: 426.6 | N24: 426.6
B25: 78 | C25: BR0396867 | D25: 30.90.30-24 | E25: Tubo PVC soldável, hidráulica, marrom, 20 mm (1/2"), 6 m, 32 mm, 1,50 mm, 7,50 kgf/cm2 a 20°c Classe " A " Marca: equivalente ou superior à Tigre. | F25: UN | G25: 10 | H25: 10 | I25: 24.8 | J25: 15.99 | L25: 248 | N25: 248
B26: 79 | C26: BR0240480 | D26: 30.90.30-24 | E26: Tubo PVC soldável, hidráulica, marrom, 25 mm (3/4"), 6 m, 32 mm, 1,70 mm, 7,50 kgf/cm2 a 20°c Classe " A " Marca: equivalente ou superior à Tigre. | F26: UN | G26: 10 | H26: 10 | I26: 10.68 | J26: 16.7 | L26: 106.8 | N26: 106.8
B27: 80 | C27: BR0214733 | D27: 30.90.30-24 | E27: Tubo PVC soldável, hidráulica, marrom, 40 mm, 6 m, 40 mm, 2,40 mm, 7,50 kgf/cm2 a 20°c Classe " A " Marca: equivalente ou superior à Tigre. | F27: UN | G27: 10 | H27: 10 | I27: 25.8 | J27: 65.9 | L27: 258 | N27: 258
B28: 81 | C28: BR0075469 | D28: 30.90.30-24 | E28: Tubo PVC soldável, hidráulica, marrom, 50 mm, 6 m, 50 mm, 3 mm, 7,50 kgf/cm2 a 20°c Classe " A " Marca: equivalente ou superior à Tigre. | F28: UN | G28: 10 | H28: 10 | I28: 11.66 | J28: 69.9 | L28: 116.6 | N28: 116.6
L30: =SUM(L13:L29) -> 2855.5 | N30: =SUM(N13:N29) -> 2855.5 | O30: =SUM(O13:O29) -> 0 | P30: 0 | Q30: 0 | R30: 0 | S30: 0 | T30: 0 | U30: 0 | V30: 0
N33: =SUM(N30:V30) -> 2855.5
N1048553: Grupos Materias Hidráulicos
N1048554: Grupo | O1048554: SEDE | P1048554: 1ª SR | Q1048554: 2ª SR | R1048554: 3ª SR | S1048554: 4ª SR | T1048554: 5ª SR | U1048554: 6ª SR | V1048554: 7ª SR | W1048554: 8ª SR
N1048555: 8 | O1048555: =N30 -> 2855.5 | P1048555: 0 | Q1048555: 0 | R1048555: 0 | S1048555: 0 | T1048555: 0 | U1048555: 0 | V1048555: 0 | W1048555: 0 | Y1048555: =SUM(O1048555:W1048555) -> 2855.5
N1048556: 9 | O1048556: ='GRUPO 09 - Hidráulica'!N22 -> 7406.2 | P1048556: ='GRUPO 09 - Hidráulica'!O22 -> 0 | Q1048556: ='GRUPO 09 - Hidráulica'!P22 -> 0 | R1048556: ='GRUPO 09 - Hidráulica'!Q22 -> 0 | S1048556: ='GRUPO 09 - Hidráulica'!R22 -> 0 | T1048556: ='GRUPO 09 - Hidráulica'!S22 -> 0 | U1048556: ='GRUPO 09 - Hidráulica'!T22 -> 0 | V1048556: ='GRUPO 09 - Hidráulica'!U22 -> 0 | W1048556: ='GRUPO 09 - Hidráulica'!V22 -> 0 | Y1048556: =SUM(O1048556:W1048556) -> 7406.2
N1048557: 10 | O1048557: ='GRUPO 10 - Hidráulica'!N25 -> 29275.36667 | P1048557: ='GRUPO 10 - Hidráulica'!O25 -> 0 | Q1048557: ='GRUPO 10 - Hidráulica'!P25 -> 0 | R1048557: ='GRUPO 10 - Hidráulica'!Q25 -> 0 | S1048557: ='GRUPO 10 - Hidráulica'!R25 -> 0 | T1048557: ='GRUPO 10 - Hidráulica'!S25 -> 0 | U1048557: ='GRUPO 10 - Hidráulica'!T25 -> 0 | V1048557: ='GRUPO 10 - Hidráulica'!U25 -> 0 | W1048557: ='GRUPO 10 - Hidráulica'!V25 -> 0 | Y1048557: 29275.36667
Y1048558: 0
Y1048559: 0
Y1048560: 0
Y1048561: 0
N1048563: Total | O1048563: =SUM(O1048555:O1048562) -> 39537.06667 | P1048563: =SUM(P1048555:P1048562) -> 0 | Q1048563: 0 | R1048563: 0 | S1048563: 0 | T1048563: 0 | U1048563: 0 | V1048563: 0 | W1048563: 0 | Y1048563: =SUM(Y1048555:Y1048562) -> 39537.06667
O1048567: =SUM(O1048563:W1048563) -> 39537.06667
E1048576: srpeletrico2019

Sheet GRUPO 09 - Hidráulica
D4: MINISTÉRIO DO DESENVOLVIMENTO REGIONAL - MDR
D5: COMPANIHA DE DESENVOLVIMENTO DOS VALES DO SÃO FRANCISCO E DO PARNAÍBA - CODEVASF
D6: ÁREA DE GESTÃO ADMINISTRATIVA E DE SUPORTE LOGÍSTICO
D7: Gerência de Patrimônio, Materiais e Serviços Auxiliares
B9: ANEXO II - GRUPO 09 - Hidráulica
B10: Material de Manutenção Hidráulica
B12: Unidade: CODEVASF | I12: GRUPO 09 - Hidráulica
B13: Item | C13: Código CATMAT | D13: Natureza Despesa | E13: Descrição Sucinta | F13: Unid. | G13: Consumo Anual Estimado | H13: Consumo Anual Geral | I13: Preço unitário máximo | J13: Preço unitário máximo 2015 | K13: Preço unitário REGISTRADO 2016 | L13: Valor Global | N13: SEDE Consumo Anual Estimado | O13: 1ª SR Consumo Anual Estimado | P13: 2ª SR Consumo Anual Estimado | Q13: 3ª SR Consumo Anual Estimado | R13: 4ª SR Consumo Anual Estimado | S13: 5ª SR Consumo Anual Estimado | T13: 6ª SR Consumo Anual Estimado | U13: 7ª SR Consumo Anual Estimado | V13: 8ª SR Consumo Anual Estimado
B14: ='GRUPO 08 - Hidráulica'!B28+1 -> 82 | C14: BR0235936 | D14: 30.90.30-26 | E14: Anticorrosivo, lubrificante/desengrax Ante/antioxidante/penetrante, spray Marca: equivalente ou superior à WD. | F14: UN | G14: 50 | H14: =SUM(G14:G14) -> 50 | I14: 26.1 | J14: 45 | K14: 20 | L14: =H14*I14 -> 1305 | N14: =I14*G14 -> 1305
B15: =B14+1 -> 83 | C15: BR0231471 | E15: Argamassa, cimento, calcário e aditivos, cinza, rejunte de placas cerâmicas em pisos e paredes Saco com 20 kg Marca: equivalente ou superior à Quartzolit | F15: Saco com 20 KG | G15: 10 | H15: 10 | I15: 18.5 | L15: =H15*I15 -> 185 | N15: 185
B16: 84 | C16: BR0304782 | D16: 30.90.30-26 | E16: Ducha higiênica para banheiro, material: metal, comprimento: 1,20 m, diâmetro: 1/2 pol, acabamento: cromado. Marca/fabricante de referência: Deca ou Docol | F16: Unid. | G16: 40 | H16: 40 | I16: 41.5 | L16: 1660 | N16: 1660
B17: 85 | C17: BR0325013 | D17: 30.90.30-24 | E17: Massa calafetar, resina sintética, 1, 70 g/cm3, água, vedação - EMBALAGEM 350,00 G | F17: Embalagem 350,00 G | G17: 25 | H17: 25 | I17: 8.5 | J17: 14 | K17: 9.89 | L17: 212.5 | N17: 212.5
B18: 86 | C18: BR0030651 | D18: 30.90.30-24 | E18: Removedor de tinta, galão de 5 (cinco) litros | F18: GL | G18: 10 | H18: 10 | I18: 45 | J18: 24 | L18: 450 | N18: 450
B19: 87 | C19: BR0301252 | D19: 5230.90.30-24 | E19: Reparo válvula hidráulica, metal cromado, encaixe, 1 1/4 pol, válvula descarga docol ri 484 ap, kit composto anel roscável e vedação/trava metal, descarga, 00022800 | F19: UN | G19: 50 | H19: 50 | I19: 63 | J19: 82 | K19: 29 | L19: 3150 | N19: 3150
B20: 88 | C20: BR0283959 | D20: 30.90.30-24 | E20: Reparo válvula hidráulica, plástico, válvula descarga hydra-deca, acionador, 2520 | F20: UN | G20: 30 | H20: 30 | I20: 14.79 | J20: 41.24 | K20: 38.8 | L20: 443.7 | N20: 443.7
B22: Total Geral | L22: =SUM(L14:L21) -> 7406.2 | N22: =SUM(N4:N21) -> 7406.2 | O22: 0 | P22: 0 | Q22: 0 | R22: 0 | S22: 0 | T22: 0 | U22: 0 | V22: 0
N26: =SUM(N22:V22) -> 7406.2
E1048576: srpeletrico2019

Sheet GRUPO 10 - Hidráulica
D4: MINISTÉRIO DO DESENVOLVIMENTO REGIONAL - MDR
D5: COMPANIHA DE DESENVOLVIMENTO DOS VALES DO SÃO FRANCISCO E DO PARNAÍBA - CODEVASF
D6: ÁREA DE GESTÃO ADMINISTRATIVA E DE SUPORTE LOGÍSTICO
D7: Gerência de Patrimônio, Materiais e Serviços Auxiliares
B9: ANEXO II - GRUPO 10 - Hidráulica
B10: Material de Manutenção Hidráulica
B11: Unidade: CODEVASF | I11: GRUPO 10 - Hidráulica
B12: Item | C12: Código CATMAT | D12: Natureza Despesa | E12: Descrição Sucinta | F12: Unid. | G12: Consumo Anual Estimado | H12: Consumo Anual Geral | I12: Preço unitário máximo | J12: Preço unitário máximo 2015 | K12: Preço unitário REGISTRADO 2016 | L12: Valor Global | N12: SEDE Consumo Anual Estimado | O12: 1ª SR Consumo Anual Estimado | P12: 2ª SR Consumo Anual Estimado | Q12: 3ª SR Consumo Anual Estimado | R12: 4ª SR Consumo Anual Estimado | S12: 5ª SR Consumo Anual Estimado | T12: 6ª SR Consumo Anual Estimado | U12: 7ª SR Consumo Anual Estimado | V12: 8ª SR Consumo Anual Estimado
B13: ='GRUPO 09 - Hidráulica'!B20+1 -> 89 | C13: BR0258317 | D13: 33.90.30-24 | E13: Assento sanitário padrão, oval, almofadado, cor branco, tampo em prolipropileno | F13: unid. | G13: 10 | H13: =SUM(G13:G13) -> 10 | I13: 20.7 | L13: =H13*I13 -> 207 | N13: =I13*G13 -> 207
B14: =B13+1 -> 90 | C14: BR0038342 | D14: 30.90.30-24 | E14: Chuveiro elétrico, ducha eletrônica 220V 7500W, mangueira e ducha manual e suporte para fixação. Marca: equivalente ou superior à Lorenzetti. | F14: UN | G14: 5 | H14: 5 | I14: 50.8 | J14: 84.9 | K14: 77.33 | L14: 254 | N14: 254
B15: =B14+1 -> 91 | C15: BR0214147 | D15: 30.90.30-24 | E15: Mangueira jardim, material PVC-traçado em náilon, diâmetro 1/2, espessura 2, pressão máxima 6 BAR., cor azul / laranja / transparente, rolo com 100, | F15: Rolo com 100 Metros | G15: 10 | H15: 10 | I15: =(219.09+244.85+239.9)/3 -> 234.6133333 | J15: 4.18 | K15: 1.73 | L15: 2346.133333 | N15: 2346.133333
B16: 92 | C16: BR0287999 | D16: 30.90.30-24 | E16: Porta-papel higiênico, plástico abs, 20 cm, 27 cm, para rolo de 300 a 400 m | F16: UN | G16: 150 | H16: 150 | I16: 21.89 | J16: 28.8 | K16: 28.79 | L16: 3283.5 | N16: 3283.5
B17: 93 | C17: BR0330354 | D17: 30.90.30-24 | E17: Porta-toalha, plástico, cinza/branco, em parede com buchas expansíveis, banheiro, para papel com 2 ou 3 dobras, 27,5 cm, 36,5 cm, 12 cm | F17: UN | G17: 150 | H17: 150 | I17: 31.82 | J17: 46.9 | K17: 46.65 | L17: 4773 | N17: 4773
B18: 94 | C18: BR0150971 | D18: 33.90.30-21 | E18: Refil para filtro em carvão, para purificador de água marca/modelo IBBL FR 600 | F18: unid. | G18: 160 | H18: 160 | I18: 72.5 | L18: =H18*I18 -> 11600 | N18: 11600
B19: 95 | C19: BR0340311 | D19: 30.90.30-24 | E19: Refil, material carvão ativado, aplicação filtro SOFT BY EVEREST | F19: UN | G19: 80 | H19: 80 | I19: 27.9 | J19: 115 | K19: 86.25 | L19: =H19*I19 -> 2232 | N19: 2232
B20: 96 | C20: BR0330355 | D20: 30.90.30-24 | E20: Saboneteira, plástico abs, policarbonato transparente alta resistência, 22 cm, 13 cm, 900 ml, antifurto atra vés buchas expansivas, banheiro, sabonete líquido/válvula dosadora 0,75 ml por acio, branca, 9,50 cm | F20: UN | G20: 30 | H20: 30 | I20: 18 | J20: 29.3 | K20: 29.3 | L20: 540 | N20: 540
B21: 97 | C21: BR0253944 | D21: 30.90.30-24 | E21: Torneira, aço inoxidável cromado, pi , 1/2 pol, bica móvel para bancada giratória,tipo pescoço de, bancada | F21: UN | G21: 20 | H21: 20 | I21: 44.1 | J21: 226.38 | K21: 25.85 | L21: 882 | N21: 882
B22: 98 | C22: BR0303691 | D22: 30.90.30-24 | E22: torneira, aço inoxidável, alavanca, 1/2 pol, cafeteira elétrica universal | F22: UN | G22: 20 | H22: 20 | I22: =(78+67+38.5)/3 -> 61.16666667 | J22: 70 | K22: 69.9 | L22: 1223.333333 | N22: 1223.333333
B23: 99 | C23: BR0239640 | D23: 30.90.30-24 | E23: Torneira, material corpo metal, tipo lavatório, diâmetro 1/2 polegada, acabamento superficial cromado, características adicionais com temporizador | F23: UN | G23: 30 | H23: 30 | I23: 64.48 | J23: 395 | K23: 52.66 | L23: 1934.4 | N23: 1934.4
B25: Total Geral | L25: =SUM(L13:L24) -> 29275.36667 | N25: =SUM(N4:N24) -> 29275.36667 | O25: 0 | P25: 0 | Q25: 0 | R25: 0 | S25: 0 | T25: 0 | U25: 0 | V25: 0
N29: =SUM(N25:V25) -> 29275.36667
E1048548: srpeletrico2019

Sheet GRUPO 11 – Marcenaria
D4: MINISTÉRIO DA INTEGRAÇÃO NACIONAL - MI
D5: COMPANIHA DE DESENVOLVIMENTO DOS VALES DO SÃO FRANCISCO E DO PARNAÍBA - CODEVASF
D6: ÁREA DE GESTÃO ADMINISTRATIVA E DE SUPORTE LOGÍSTICO
D7: Gerência de Patrimônio, Materiais e Serviços Auxiliares
B9: ANEXO II - GRUPO 11 – Marcenaria
B10: Material de Manutenção de Marcenaria
B11: Unidade: CODEVASF | I11: GRUPO 11 – Marcenaria
B12: Item | C12: Código CATMAT | D12: Natureza Despesa | E12: Descrição Sucinta | F12: Unid. | G12: Consumo Anual Estimado | H12: Consumo Anual Geral | I12: Painel de Preço 2019 | J12: Preço unitário máximo 2015 | K12: Preço unitário REGISTRADO 2016 | L12: Valor Global | N12: SEDE Consumo Anual Estimado | O12: 1ª SR Consumo Anual Estimado | P12: 2ª SR Consumo Anual Estimado | Q12: 3ª SR Consumo Anual Estimado | R12: 4ª SR Consumo Anual Estimado | S12: 5ª SR Consumo Anual Estimado | T12: 6ª SR Consumo Anual Estimado | U12: 7ª SR Consumo Anual Estimado | V12: 8ª SR Consumo Anual Estimado
B13: ='GRUPO 10 - Hidráulica'!B23+1 -> 100 | C13: BR0277412 | D13: 30.90.30-26 | E13: Broca wídia, material corpo aço, material ponta wídia, tamanho longa, diâmetro 10 mm | F13: UN | G13: 10 | H13: =SUM(G13:G13) -> 10 | I13: 7.23 | J13: 4.52 | L13: =H13*I13 -> 72.3 | N13: =G13*I13 -> 72.3
B14: =B13+1 -> 101 | C14: BR0266375 | D14: 30.90.30-26 | E14: Broca wídia, material corpo aço, material ponta wídia, tamanho média, diâmetro 6 mm, SDS PLUS | F14: UN | G14: 10 | H14: 10 | I14: 3.47 | J14: 5.21 | K14: 1.5 | L14: =H14*I14 -> 34.7 | N14: 34.7
B15: =B14+1 -> 102 | C15: BR0266376 | D15: 30.90.30-26 | E15: Broca wídia, material corpo aço, material ponta wídia, tamanho média, diâmetro 8 mm | F15: UN | G15: 10 | H15: 10 | I15: 5 | J15: 3.21 | K15: 3.18 | L15: 50 | N15: 50
B16: 103 | C16: BR0277410 | D16: 30.90.30-26 | E16: Broca wídia, para concreto, material corpo aço, material ponta wídia, tamanho curta, diâmetro 4 mm | F16: UN | G16: 50 | H16: 50 | I16: 1.52 | J16: 3.1 | K16: 2.62 | L16: 76 | N16: 76
B17: 104 | C17: BR0227316 | E17: Broca, aço rápido, 9/64 pol, médio, cilíndrica | F17: UN | G17: 30 | H17: 30 | I17: 2.17 | J17: 4.8 | K17: 1.45 | L17: 65.1 | N17: 65.1
B18: 105 | C18: BR0284259 | D18: 30.90.30-26 | E18: Broca, material aço rápido, Comprimento total: 160mm, Comprimento útil: 100mm, aplicação martelete/concreto, componentes 7 brocas com diâmetro de 0,6mm; 0,8mm; 10mm; 12mm;, características adicionais tipo encaixe SDS Utilização em martelete Bosch GBH 2-24D | F18: Jogo com 7 unid. | G18: 3 | H18: 3 | I18: 112.99 | J18: 52 | L18: 338.97 | N18: 338.97
B19: 106 | C19: BR0243298 | D19: 30.90.30-26 | E19: Broca, material aço rápido, diâmetro S/4 mm, tamanho médio, tipo haste cilíndrica | F19: UN | G19: 20 | H19: 20 | I19: 2.52 | J19: 3.64 | K19: 1.58 | L19: 50.4 | N19: 50.4
B20: 107 | C20: BR0242968 | D20: 30.90.30-26 | E20: Broca, material aço rápido, diâmetro S/6 mm, tamanho médio, tipo haste cilíndrica | F20: UN | G20: 20 | H20: 20 | I20: 2 | J20: 6.5 | K20: 2.39 | L20: 40 | N20: 40
B21: 108 | C21: BR0359439 | D21: 30.90.30-26 | E21: Bucha de nylon tamanho S/10 | F21: UN | G21: 1000 | H21: 1000 | I21: 0.03 | J21: 0.6 | K21: 0.04 | L21: 30 | N21: 30
B22: 109 | C22: BR0318019 | D22: 30.90.30-26 | E22: Bucha de nylon tamanho S/4 | F22: UN | G22: 1000 | H22: 1000 | I22: 0.11 | J22: 0.2 | K22: 0.09 | L22: 110 | N22: 110
B23: 110 | C23: BR0249217 | D23: 30.90.30-26 | E23: Bucha de nylon tamanho S/6 | F23: UN | G23: 2000 | H23: 2000 | I23: 0.03 | J23: 0.8 | K23: 0.02 | L23: 60 | N23: 60
B24: 111 | C24: BR0249218 | D24: 30.90.30-26 | E24: Bucha de nylon tamanho S/8 | F24: UN | G24: 2000 | H24: 2000 | I24: 0.3 | J24: 0.5 | K24: 0.02 | L24: 600 | N24: 600
B25: 112 | C25: BR0288460 | D25: 30.90.30-26 | E25: COLA, COMPOSIÇÃO:POLÍMERO DE ACETATO DE POLIVINILA E ADITIVOS, COR:BRANCA, APLICAÇÃO:MADEIRA, CARACTERÍSTICAS ADICIONAIS:LAVÁVEL E ATÓXICA, TIPO:LÍQUIDO | F25: Frasco de 1 litro | G25: 10 | H25: 10 | I25: 9.3 | J25: 17.15 | K25: 17.15 | L25: 93 | N25: 93
B26: 113 | C26: BR0335061 | D26: 30.90.30-24 | E26: Fita antiderrapante, filme de poliéster com mineral abrasivo, largura 50mm, cor da fita preta, par utilização em escada, rampa, corredor, 20 m, adesivo de borracha e linear, à prova d'água/resina adesiva Caixa com um rolo de 5 metros Marca: equivalente ou superior à Safety-Walk 3M. | F26: Caixa com um rolo de 5 metros | G26: 20 | H26: 20 | I26: 17.38 | J26: 77.1 | K26: 28.35 | L26: 347.6 | N26: 347.6
B27: 114 | C27: BR0010146 | D27: 30.90.30-26 | E27: Mola para porta (tipo coimbra) | F27: UN | G27: 25 | H27: 25 | I27: 87.78 | J27: 1000 | K27: 95.77 | L27: 2194.5 | N27: 2194.5
B28: 115 | C28: BR0275057 | D28: 30.90.30-26 | E28: Parafuso, aço galvanizado, cabeça sextavada, comprimento 50 mm, diâmetro 5mm, rosca soberba | F28: UN | G28: 1000 | H28: 1000 | I28: 0.4 | J28: 0.53 | K28: 0.3 | L28: 400 | N28: 400
B29: 116 | C29: BR0250703 | E29: Prego com cabeça, aço temperado, liso, diamante, niquelado, 10 X 10 | F29: KG | G29: 4 | H29: 4 | I29: =(22.69+19.17+18.91)/3 -> 20.25666667 | L29: 81.02666667 | N29: 81.02666667
B30: 117 | C30: BR0317913 | D30: 30.90.30-26 | E30: Prego com cabeça, aço, chata, liso, c omum, 13 x 18 | F30: KG | G30: 5 | H30: 5 | I30: 9 | J30: 8.79 | K30: 8.4 | L30: 45 | N30: 45
B31: 118 | C31: BR0330577 | D31: 30.90.30-26 | E31: Prego com cabeça, ferro comum, chata, liso, polido, 17 x 21 | F31: KG | G31: 5 | H31: 5 | I31: 10.09 | J31: 8.32 | K31: 7.47 | L31: 50.45 | N31: 50.45
B32: 119 | C32: BR0330576 | D32: 30.90.30-26 | E32: Prego com cabeça, ferro comum, chata, liso, polido, 15 x 15 | F32: KG | G32: 5 | H32: 5 | I32: =(11.9+12.06+11.21)/3 -> 11.72333333 | J32: 7.5 | K32: 7.5 | L32: 58.61666667 | N32: 58.61666667
B33: 120 | C33: BR0367332 | D33: 33.90-30-17 | E33: Solda estanho, aspecto físico fio sólido, aplicação soldagem de componentes eletroeletrônico | F33: Rolo 500G | G33: 2 | H33: 2 | I33: 65.42 | L33: 130.84 | N33: 130.84
B34: 121 | C34: BR0226313 | D34: 30.90.30-26 | E34: Verniz, acabamento brilhante, cor transparente, método aplicação pincel e pistola, aplicação interior e exterior, características adicionais secagem rápida (GALÃO 3,60 L) | F34: GALÃO 3,60 L | G34: 4 | H34: 4 | I34: 64.84 | J34: 54 | K34: 54 | L34: 259.36 | N34: 259.36
B36: Total Geral | L36: =SUM(L13:L35) -> 5187.863333 | N36: =SUM(N13:N34) -> 5187.863333 | O36: 0 | P36: 0 | Q36: 0 | R36: 0 | S36: 0 | T36: 0 | U36: 0 | V36: 0
N38: =SUM(N36:V36) -> 5187.863333
E1048560: srpeletrico2019

Sheet GRUPO 12 - Ferramentas
D4: MINISTÉRIO DA INTEGRAÇÃO NACIONAL - MI
D5: COMPANIHA DE DESENVOLVIMENTO DOS VALES DO SÃO FRANCISCO E DO PARNAÍBA - CODEVASF
D6: ÁREA DE GESTÃO ADMINISTRATIVA E DE SUPORTE LOGÍSTICO
D7: Gerência de Patrimônio, Materiais e Serviços Auxiliares
B9: ANEXO II - GRUPO 12 – Ferramentas
B10: Material Ferramentas
B11: Unidade: CODEVASF | I11: GRUPO 12 – Ferramentas
B12: Item | C12: Código CATMAT | D12: Natureza Despesa | E12: Descrição Sucinta | F12: Unid. | G12: SEDE Consumo Anual Estimado | H12: Consumo Anual Geral | I12: Painel de Preço 2019 | J12: Preço unitário máximo 2015 | K12: Preço unitário REGISTRADO 2016 | L12: Valor Global | N12: SEDE Consumo Anual Estimado | O12: 1ª SR Consumo Anual Estimado | P12: 2ª SR Consumo Anual Estimado | Q12: 3ª SR Consumo Anual Estimado | R12: 4ª SR Consumo Anual Estimado | S12: 5ª SR Consumo Anual Estimado | T12: 6ª SR Consumo Anual Estimado | U12: 7ª SR Consumo Anual Estimado | V12: 8ª SR Consumo Anual Estimado | Z12: srpeletrico2019
B13: ='GRUPO 11 – Marcenaria'!B34+1 -> 122 | C13: BR0251453 | D13: 30.90.30-26 | E13: Alicate universal, forjado em aço cromo vanádio, profissional, cabo isolado, corte temperado por indução, 200 mm, corte arames duros e corda de piano Marca: equivalente ou superior à Gedore. | F13: UN | G13: 8 | H13: =SUM(G13:G13) -> 8 | I13: =(52.71+32.78+37.13)/3 -> 40.87333333 | J13: 31.8 | K13: 25 | L13: =H13*I13 -> 326.9866667 | N13: =I13*G13 -> 326.9866667 | O13: =#REF!*I13 ->  | P13: =#REF!*I13 ->  | Q13: =#REF!*I13 ->  | R13: =#REF!*I13 ->  | S13: =#REF!*I13 ->  | T13: =#REF!*I13 ->  | U13: =#REF!*I13 ->  | V13: =#REF!*I13 -> 
B14: =B13+1 -> 123 | C14: BR0311040 | D14: 30.90.30-26 | E14: Arco serra, lâmina serra standard 12 polegadas, material cabo polipropileno, tratamento superficial niquelado, tamanho 12 polegadas, tipo regulável, características adicionais com cabo fechado e profundidade de corte de 90 mm. Marca: equivalente ou superior à Starrett. | F14: UN | G14: 10 | H14: 10 | I14: 18.34 | J14: 26.15 | K14: 14.45 | L14: =H14*I14 -> 183.4 | N14: 183.4 | O14: =#REF!*I14 ->  | P14: =#REF!*I14 ->  | Q14: =#REF!*I14 ->  | R14: =#REF!*I14 ->  | S14: =#REF!*I14 ->  | T14: =#REF!*I14 ->  | U14: =#REF!*I14 ->  | V14: =#REF!*I14 -> 
B15: =B14+1 -> 124 | C15: BR0034525 | D15: 30.90.30-24 | E15: Disco diamantado, diamante, 105 mm, 0 mm, segmentado, mármore | F15: UN | G15: 40 | H15: 40 | I15: 16.18 | J15: 12.68 | K15: 9.99 | L15: 647.2 | N15: 647.2 | O15: =#REF!*I15 ->  | P15: =#REF!*I15 ->  | Q15: =#REF!*I15 ->  | R15: =#REF!*I15 ->  | S15: =#REF!*I15 ->  | T15: =#REF!*I15 ->  | U15: =#REF!*I15 ->  | V15: =#REF!*I15 -> 
B16: 125 | C16: BR0066397 | D16: 33.90.30-24 | E16: CHAVE ALLEN jogo 30 peças com estojo forjadas em aço cromo vanádio acabamento oxidado acompanha estojo organizador em plástico reforçado composto por 30 peças, com as seguintes medidas: 15 chaves em milímetros: 0,7; 0,9; 1,3; 1,5; 2,0; 2,5; 3,0; 4,0; 4,5; 5,0; 5,5; 6; 7; 8; 10 mm 15 chaves em polegadas: 0,028; 0,035; 0,050; 1/16; 5/64; 3/32; 7/64; 1/8; 9/64; 5/32; 3/16; 7/32; ¼; 5/16; 3 /8 | F16: Jogo com 30 peças | G16: 5 | H16: 5 | I16: 28.74 | L16: 143.7 | N16: 143.7 | O16: =#REF!*I16 ->  | P16: =#REF!*I16 ->  | Q16: =#REF!*I16 ->  | R16: =#REF!*I16 ->  | S16: =#REF!*I16 ->  | T16: =#REF!*I16 ->  | U16: =#REF!*I16 ->  | V16: =#REF!*I16 -> 
B17: 126 | C17: BR0266499 | D17: 30.90.30-26 | E17: Jogo chaves fenda, aço, chata, 3x80, 3x100, 4x100, 4x125, 6x125, 6x150, 6x200 e 7 mm, polipropileno, niquelado, 8 unidades, características adicionais ponta imantada | F17: Jogo com 8 peças | G17: 5 | H17: 5 | I17: =(63.88+87.99+99)/3 -> 83.62333333 | J17: 135 | K17: 134.9 | L17: 418.1166667 | N17: 418.1166667 | O17: =#REF!*I17 ->  | P17: =#REF!*I17 ->  | Q17: =#REF!*I17 ->  | R17: =#REF!*I17 ->  | S17: =#REF!*I17 ->  | T17: =#REF!*I17 ->  | U17: =#REF!*I17 ->  | V17: =#REF!*I17 -> 
B18: 127 | C18: BR0286788 | D18: 33.90.30-24 | E18: Jogo chaves phillips, aço, 3x60, 4,5x80, 4,5x100, 6x150, 8x200, 10x150 e 10x mm, polipropileno, niquelado, 7 unidades, características adicionais ponta imantada | F18: Jogo com 7 peças | G18: 6 | H18: 6 | I18: =(72.24+69.55+49.72)/3 -> 63.83666667 | L18: 383.02 | N18: 383.02 | O18: =#REF!*I18 ->  | P18: =#REF!*I18 ->  | Q18: =#REF!*I18 ->  | R18: =#REF!*I18 ->  | S18: =#REF!*I18 ->  | T18: =#REF!*I18 ->  | U18: =#REF!*I18 ->  | V18: =#REF!*I18 -> 
B19: 128 | C19: BR0286788 | E19: Jogo chaves fenda, material haste aço, tipo ponta phillips, bitola 3X60, 4,5X80, 4,5X100, 6X150, 8X200, 10X150 E 10 MM, material cabo polipropileno, tratamento superficial ponta niquelado, quantidade peças 7 unidades, características adicionais ponta imantada | F19: Jogo com 7 peças | G19: 6 | H19: 6 | I19: =(72.24+69.55+49.72)/3 -> 63.83666667 | L19: 383.02 | N19: 383.02
B20: 129 | C20: BR0302379 | D20: 30.90.30-26 | E20: Lâmina serra manual, aço rápido, 32 dentes por polegada, 1/2" pol, 300 mm Marca: equivalente ou superior à Starret. | F20: UN | G20: 20 | H20: 20 | I20: =(6+5.19+7.54)/3 -> 6.243333333 | J20: 5.55 | K20: 4.88 | L20: 124.8666667 | N20: 124.8666667
B21: 130 | C21: BR0053481 | D21: 30.90.30-24 | E21: Régua de alumino com 2 metors, para pedreiro | F21: UN | G21: 2 | H21: 2 | I21: 25.87 | J21: 49.9 | K21: 48.08 | L21: 51.74 | N21: 51.74
B22: 131 | C22: BR429114 | D22: 30.90.30-26 | E22: Trena de aço, 3/4'' de largura, 10m, graduação em milímetro e polegada, com trava de fixação, presilha para cinto e estojo em ABS | F22: UN | G22: 10 | H22: 10 | I22: 23.96 | J22: 65.48 | K22: 27.21 | L22: 239.6 | N22: 239.6
B23: 132 | C23: BR0234033 | D23: 30.90.30-26 | E23: Trena em fibra de vidro, estojo anatômico, com manivela dobrável, 50 (cinquenta) metros | F23: UN | G23: 2 | H23: 2 | I23: 43.8 | J23: 154.6 | K23: 78.9 | L23: 87.6 | N23: 87.6
B25: Total Geral | L25: =SUM(L13:L24) -> 2989.25 | N25: =SUM(N3:N24) -> 2989.25
N27: =SUM(N25:V25) -> 
E1048553: srpeletrico2019

Sheet Total Estimado
C2: MINISTÉRIO DO DESENVOLVIMENTO REGIONAL - MDR
C3: COMPANIHA DE DESENVOL. DOS VALES DO SÃO FRANCISCO E DO PARNAÍBA - CODEVASF
C4: ÁREA DE GESTÃO ADMINISTRATIVA E DE SUPORTE LOGÍSTICO
C5: Gerência de Patrimônio, Materiais e Serviços Auxiliares
B7: Unidades Responsáveis | E7: Valores
B8: AA/GSA/UPM | C8: Por Itens | D8: Materiais Elétricos e Hidráulicos | E8: ='Por Item - Elétrico'!$N$18 -> 132740.7 | G8: ='Por Item - Elétrico'!N18 -> 132740.7
C9: Grupos 01 a 07 | D9: Manutenção Elétrica | E9: ='GRUPO 01 - Elétrico'!$AC$1048563 -> 262609.9067
C10: Grupos 08 a 10 | D10: Manutenção Hidráulica | E10: ='GRUPO 08 - Hidráulica'!$O$1048563 -> 39537.06667
C11: Grupo 11 | D11: Marcenaria | E11: ='GRUPO 11 – Marcenaria'!$N$36 -> 5187.863333
C12: Grupo 12 | D12: Ferramentas | E12: ='GRUPO 12 - Ferramentas'!$N$25 -> 2989.25
B13: Valor Estimado | E13: =SUM(E8:E12) -> 443064.7867 | G13: =E13 -> 443064.7867
B16: Valor Global Estimado
G19: =SUM(G8:G16) -> 575805.4867
B20: Em conformidade com o Decreto Nº 7.892, de 23 de Janeiro de 2013, Art.7º, inciso § 2o :
B22: “Na licitação para registro de preços não é necessário indicar a dotação orçamentária, que somente será exigida para a formalização do contrato ou outro instrumento hábil.”
B31: Os recursos correrão à conta das funcionais programáticas:
B33: PTRES
B34: 004088 | C34: 04.122.0750.2000.0001 | D34: Administração da Unidade
B35: 004089 | C35: 04.122.0757.2272.0001 | D35: GESTÃO E ADMINISTRAÇÃO DO PROGRAMA-GAP-NA (Gestão da Política de Integração Nacional)
B36: 021272 | C36: ´04.121.0757.8892.0001 | D36: Manutenção do Sistema Nacional de Informações P/o Desenvolvimento Regional e Ordenamento Territorial-NA - Sistema mantido (unidade) - 1
B37: 025238 | C37: ´04.122.0757.8785.0001 | D37: Gap-Gestão E Coordenação do Programa de Aceleração do Crescimento-Pac-Na (Gestão da Política da Integração Nacional)
B40: Natureza da despesa: 33.90.30
B41: Fonte de recursos: Próprias,Tesouro, GAP, PAC e Manutenção do Sistema Nacional de Informações.

Sheet Total Estimado 2
C3: MINISTÉRIO DA INTEGRAÇÃO NACIONAL - MI
C4: COMPANIHA DE DESENVOL. DOS VALES DO SÃO FRANCISCO E DO PARNAÍBA - CODEVASF
C5: ÁREA DE GESTÃO ADMINISTRATIVA E DE SUPORTE LOGÍSTICO
C6: Gerência de Patrimônio, Materiais e Serviços Auxiliares
B8: ANEXO II - PLANILHA DE QUANTITATIVO E PREÇOS
B10: Composição | D10: Setor Responsável | E10: Valores
B11: Por Itens | C11: Materiais Elétricos e Hidráulicos | D11: Sede e SR´s | E11: ='Por Item - Elétrico'!$L$18 -> 132740.7
B12: Grupos 01 a 07 | C12: Manutenção Elétrica | D12: Sede e SR´s | E12: ='GRUPO 01 - Elétrico'!L35+'GRUPO 02 - Elétrico'!L24+'GRUPO 03 - Elétrico'!L21+'GRUPO 04 - Elétrico'!L20+'GRUPO 05 - Elétrico'!L16+'GRUPO 06 - Elétrico'!L21+'GRUPO 07 - Elétrico'!L22 -> 262609.9067
B13: Grupos 08 a 10 | C13: Manutenção Hidráulica | D13: Sede e SR´s | E13: ='GRUPO 08 - Hidráulica'!$O$1048567 -> 39537.06667
B14: Grupo 11 | C14: Marcenaria | D14: Sede e SR´s | E14: ='GRUPO 11 – Marcenaria'!$L$36 -> 5187.863333
B15: Grupo 12 | C15: Ferramentas | D15: Sede e SR´s | E15: ='GRUPO 12 - Ferramentas'!$L$25 -> 2989.25
B17: Valor Global Estimado | E17: =SUM(E11:E16) -> 443064.7867
B21: Em conformidade com o Decreto Nº 7.892, de 23 de Janeiro de 2013, Art.7º, inciso § 2o :
B23: “Na licitação para registro de preços não é necessário indicar a dotação orçamentária, que somente será exigida para a formalização do contrato ou outro instrumento hábil.”
